[Event "Kezmarok Chess Open 2022"]
[Site "Kezmarok"]
[Date "2022.09.25"]
[Round "2.14"]
[White "Fizerova, Lucie"]
[Black "Rakovsky, Jakub"]
[Result "1-0"]
[ECO "A22"]
[WhiteElo "1779"]
[BlackElo "2012"]
[Annotator "NA RC"]
[PlyCount "93"]
[EventDate "2022.09.24"]
[EventType "swiss"]
[EventCountry "SVK"]
[SourceTitle "playchess.com"]
[Source "ChessBase"]
[SourceQuality "1"]
[TimeControl "40/5400+30:1800+30"]

1. c4 {[%emt 0:00:15]} e5 {[%emt 0:05:09]} 2. Nc3 {[%emt 0:01:48]} Nf6 {[%emt 0:00:57]} 3. g3 {[%emt 0:00:29]} d5 {[%emt 0:01:07]} 4. cxd5 {[%emt 0:00:13]} Nxd5 {[%emt 0:00:36]} 5. Bg2 {[%emt 0:00:14]} Nb6 {[%emt 0:00:23]} 6. Nf3 {[%emt 0:01:04]} Nc6 {[%emt 0:00:48]} 7. O-O {[%emt 0:00:50]} Be7 {[%emt 0:02:11]} 8. d3 {[%emt 0:02:53]} Be6 {[%emt 0:01:55]} 9. Be3 {[%emt 0:01:30]} O-O {[%emt 0:00:52]} 10. a4 {[%emt 0:07:23]} f5 {[%emt 0:11:04]} 11. a5 {[%emt 0:02:37]} Nd7 {[%emt 0:05:55]} 12. a6 {[%emt 0:02:11]} Rb8 {[%emt 0:20:00]} 13. Ne1 {[%emt 0:02:43]} f4 {[%emt 0:04:24]} 14. Bd2 {[%emt 0:02:27]} Nd4 {[%emt 0:07:50]} 15. axb7 {[%emt 0:02:30]} c6 {[%emt 0:05:14]} 16. e3 {[%emt 0:05:47]} f3 {[%emt 0:03:13]} 17. exd4 {[%emt 0:01:09]} fxg2 {[%emt 0:00:22]} 18. Nxg2 {[%emt 0:00:36]} exd4 {[%emt 0:00:18]} 19. Ne2 {[%emt 0:00:42]} Ne5 {[%emt 0:04:55]} 20. Nef4 {[%emt 0:02:08]} Bd5 {[%emt 0:00:46]} 21. Nxd5 {[%emt 0:07:26]} Qxd5 {[%emt 0:01:57]} 22. Nf4 {[%emt 0:03:13]} Nf3+ {[%emt 0:01:14]} 23. Kh1 {[%emt 0:00:19]} Rxf4 {[%emt 0:00:33]} 24. Bxf4 {[%emt 0:00:49]} Rxb7 {[%emt 0:00:14]} 25. Qe2 {[%emt 0:03:34]} Kf7 {[%emt 0:03:50]} 26. Qe4 {[%emt 0:03:33]} Qxe4 {[%emt 0:03:35]} 27. dxe4 {[%emt 0:00:09]} Rxb2 {[%emt 0:01:42]} 28. Rxa7 {[%emt 0:02:23]} Re2 {[%emt 0:00:13]} 29. Rc7 {[%emt 0:05:38]} Rxe4 {[%emt 0:05:02]} 30. Rxc6 {[%emt 0:01:39]} d3 {[%emt 0:00:28]} 31. Rc3 {[%emt 0:02:04]} g5 {[%emt 0:03:16]} 32. Rxd3 {[%emt 0:05:46]} Nxh2 {[%emt 0:00:07]} 33. Kxh2 {[%emt 0:00:18]} gxf4 {[%emt 0:00:05]} 34. gxf4 {[%emt 0:01:39]} Rxf4 {[%emt 0:00:06]} 35. Kg3 {[%emt 0:00:58]} Rf6 {[%emt 0:00:29]} 36. Re1 {[%emt 0:02:43]} Rg6+ {[%emt 0:01:37]} 37. Kf3 {[%emt 0:02:43]} Rf6+ {[%emt 0:02:59]} 38. Kg2 {[%emt 0:03:00]} Rg6+ {[%emt 0:00:10]} 39. Rg3 {[%emt 0:03:51]} Bd6 {[%emt 0:00:49]} 40. Rxg6 {[%emt 0:00:20]} hxg6 {[%emt 0:00:04]} 41. Kf3 {[%emt 0:30:49]} Kf6 {[%emt 0:30:50]} 42. Kg4 {[%emt 0:00:36]} g5 {[%emt 0:01:54]} 43. Rb1 {[%emt 0:03:37]} Bf4 {[%emt 0:00:12]} 44. Rb6+ {[%emt 0:02:03]} Ke5 {[%emt 0:00:21]} 45. Rb5+ {[%emt 0:00:48]} Kf6 {[%emt 0:01:39]} 46. Rf5+ {[%emt 0:00:27]} Kg6 {[%emt 0:00:34]} 47. Rxf4 {[%emt 0:00:59]} 1-0

[Event "Kezmarok Chess Open 2022"]
[Site "Kezmarok"]
[Date "2022.09.25"]
[Round "2.15"]
[White "Kolek, Stefan"]
[Black "Janik, Marek Tobias"]
[Result "0-1"]
[ECO "B28"]
[WhiteElo "1524"]
[BlackElo "1823"]
[Annotator "NA RC COMBH"]
[PlyCount "66"]
[EventDate "2022.09.24"]
[EventType "swiss"]
[EventCountry "SVK"]
[SourceTitle "playchess.com"]
[Source "ChessBase"]
[SourceQuality "1"]
[TimeControl "40/5400+30:1800+30"]

1. e4 {[%emt 0:00:07]} c5 {[%emt 0:00:08]} 2. Nf3 {[%emt 0:00:12]} a6 {[%emt 0:00:28]} 3. Nc3 {[%emt 0:00:11]} b5 {[%emt 0:00:36]} 4. d4 {[%emt 0:00:22]} cxd4 {[%emt 0:06:07]} 5. Nxd4 {[%emt 0:00:15]} Bb7 {[%emt 0:00:24]} 6. Be2 {[%emt 0:02:30]} e6 {[%emt 0:02:35]} 7. O-O {[%emt 0:00:13]} Bc5 {[%emt 0:06:54]} 8. Bf3 {[%emt 0:01:16]} Qc7 {[%emt 0:04:11]} 9. Nce2 {[%emt 0:00:55]} Ne7 {[%emt 0:02:03]} 10. Bf4 {[%emt 0:03:08]} e5 {[%emt 0:00:02]} 11. Bg3 {[%emt 0:00:45]} d6 {[%emt 0:01:00]} 12. Nb3 {[%emt 0:00:51]} Nd7 {[%emt 0:04:26]} 13. Nc3 {[%emt 0:00:49]} O-O {[%emt 0:02:16]} 14. Nd5 {[%emt 0:00:11]} Bxd5 {[%emt 0:00:37]} 15. exd5 {[%emt 0:00:53]} f5 {[%emt 0:01:50]} 16. c3 {[%emt 0:07:34]} e4 {[%emt 0:18:22]} 17. Bh5 {[%emt 0:03:02]} g6 {[%emt 0:11:25]} 18. Be2 {[%emt 0:00:15]} g5 {[%emt 0:06:14]} 19. h3 {[%emt 0:00:22]} f4 {[%emt 0:00:06]} 20. Bh2 {[%emt 0:00:05]} Nf5 {[%emt 0:03:47]} 21. Bg4 {[%emt 0:00:59]} Ne5 {[%emt 0:06:30]} 22. Bxf5 {[%emt 0:01:07]} Rxf5 {[%emt 0:00:06]} 23. Nd4 {[%emt 0:00:08]} Bxd4 {[%emt 0:02:54]} 24. Qxd4 {[%emt 0:00:22]} Qc4 {[%emt 0:03:17]} 25. Rad1 {[%emt 0:00:24]} Nd3 {[%emt 0:01:23]} 26. Qxc4 {[%emt 0:02:08]} bxc4 27. g3 {[%emt 0:01:07]} Rxd5 {[%emt 0:08:03]} 28. gxf4 {[%emt 0:00:47]} gxf4 {[%emt 0:00:50]} 29. b3 {[%emt 0:00:17]} Rb8 {[%emt 0:01:58]} 30. b4 {[%emt 0:05:54]} Kf7 {[%emt 0:00:10]} 31. Kh1 {[%emt 0:00:09]} Nxf2+ {[%emt 0:00:13]} 32. Kg2 {[%emt 0:02:10]} Rxd1 {[%emt 0:01:03]} 33. Rxf2 {[%emt 0:00:48]} Rg8+ {[%emt 0:00:07]} 0-1

[Event "Kezmarok Chess Open 2022"]
[Site "Kezmarok"]
[Date "2022.09.25"]
[Round "2.16"]
[White "Skapikova, Lubica"]
[Black "Kapolkova, Greta"]
[Result "0-1"]
[ECO "B21"]
[WhiteElo "1823"]
[BlackElo "1723"]
[Annotator "NA RC COMBH"]
[PlyCount "110"]
[EventDate "2022.09.24"]
[EventType "swiss"]
[EventCountry "SVK"]
[SourceTitle "playchess.com"]
[Source "ChessBase"]
[SourceQuality "1"]
[TimeControl "40/5400+30:1800+30"]

1. e4 c5 2. f4 Nc6 3. Nf3 e6 4. g3 d5 5. e5 h5 6. Bg2 Be7 7. h4 Nh6 8. Bh3 g6 9. Nc3 b6 10. d3 Bb7 11. d4 a6 12. Ne2 c4 13. c3 b5 14. Qc2 Bc8 15. Be3 a5 16. b3 Rb8 17. bxc4 bxc4 18. Rb1 Bd7 19. Kf2 O-O 20. Rxb8 Qxb8 21. Rb1 Qc7 22. f5 Nxf5 23. Bxf5 exf5 24. Nf4 Be6 25. Bc1 Rb8 26. Ne1 Rxb1 27. Qxb1 Qb8 28. Qxb8+ Nxb8 29. Nc2 Na6 30. Ba3 Bxa3 31. Nxa3 Nc7 32. Nc2 Nb5 33. Ne2 f6 34. exf6 Kf7 35. Kf3 Kxf6 36. Kf4 Bd7 37. Ne3 Bc6 38. Nf1 Nc7 39. Nd2 Ba4 40. Nf3 Bd1 41. Ke3 Nb5 42. Nfg1 Bxe2 43. Nxe2 g5 44. Kf3 Nc7 45. Ng1 Ne6 46. Ne2 a4 47. Ke3 f4+ 48. gxf4 gxh4 49. Kf2 Kf5 50. Kf3 a3 51. Ng1 Nxf4 52. Ke3 Kg4 53. Nf3 h3 54. Nh2+ Kg3 55. Nf1+ Kg2 0-1

[Event "Kezmarok Chess Open 2022"]
[Site "Kezmarok"]
[Date "2022.09.25"]
[Round "2.17"]
[White "Sekova, Olivia"]
[Black "Mazak, Ryan"]
[Result "1/2-1/2"]
[ECO "C47"]
[WhiteElo "1797"]
[BlackElo "1590"]
[Annotator "NA RC COMBH"]
[PlyCount "93"]
[EventDate "2022.09.24"]
[EventType "swiss"]
[EventCountry "SVK"]
[SourceTitle "playchess.com"]
[Source "ChessBase"]
[SourceQuality "1"]
[TimeControl "40/5400+30:1800+30"]

1. e4 {[%emt 0:00:08]} e5 {[%emt 0:00:19]} 2. Nf3 {[%emt 0:00:22]} Nf6 {[%emt 0:00:14]} 3. Nc3 {[%emt 0:00:16]} Nc6 {[%emt 0:00:44]} 4. d4 {[%emt 0:00:28]} exd4 {[%emt 0:00:33]} 5. Nxd4 {[%emt 0:00:09]} Bb4 {[%emt 0:00:43]} 6. Nxc6 {[%emt 0:00:52]} bxc6 {[%emt 0:00:46]} 7. Bd3 {[%emt 0:00:33]} d5 {[%emt 0:05:29]} 8. Bd2 {[%emt 0:04:11]} O-O {[%emt 0:05:18]} 9. O-O {[%emt 0:03:51]} Re8 {[%emt 0:04:05]} 10. Re1 {[%emt 0:12:06]} Ng4 {[%emt 0:06:12]} 11. h3 {[%emt 0:14:32]} Ne5 {[%emt 0:07:17]} 12. exd5 {[%emt 0:07:08]} cxd5 {[%emt 0:13:30]} 13. Bxh7+ {[%emt 0:02:48]} Kxh7 {[%emt 0:01:19]} 14. Qh5+ {[%emt 0:02:59]} Kg8 {[%emt 0:01:25]} 15. Rxe5 {[%emt 0:00:21]} Rxe5 {[%emt 0:01:45]} 16. Qxe5 {[%emt 0:00:07]} Rb8 {[%emt 0:05:00]} 17. Re1 {[%emt 0:13:45]} Be6 {[%emt 0:03:36]} 18. b3 {[%emt 0:20:24]} Qd7 {[%emt 0:10:19]} 19. Rd1 {[%emt 0:04:26]} Bd6 {[%emt 0:05:12]} 20. Qh5 {[%emt 0:00:57]} Re8 {[%emt 0:03:19]} 21. Be3 {[%emt 0:00:41]} c6 {[%emt 0:01:29]} 22. Rd4 {[%emt 0:01:31]} Be7 {[%emt 0:03:06]} 23. Ra4 {[%emt 0:01:45]} a5 {[%emt 0:02:00]} 24. Ne2 {[%emt 0:01:55]} Bd8 {[%emt 0:06:16]} 25. Nd4 {[%emt 0:02:08]} Qd6 {[%emt 0:03:43]} 26. Nf3 {[%emt 0:02:12]} c5 {[%emt 0:05:13]} 27. Bf4 {[%emt 0:01:17]} Qe7 {[%emt 0:02:30]} 28. Ng5 {[%emt 0:00:22]} Bf5 {[%emt 0:00:45]} 29. Nf3 {[%emt 0:02:00]} Bxc2 {[%emt 0:01:10]} 30. Qxd5 {[%emt 0:00:11]} Be4 {[%emt 0:00:44]} 31. Qd6 {[%emt 0:00:59]} Qxd6 {[%emt 0:01:01]} 32. Bxd6 {[%emt 0:00:06]} Bxf3 {[%emt 0:00:48]} 33. gxf3 {[%emt 0:00:06]} Re1+ {[%emt 0:00:17]} 34. Kg2 {[%emt 0:00:04]} Rc1 {[%emt 0:00:11]} 35. Rc4 {[%emt 0:00:45]} Rxc4 {[%emt 0:00:08]} 36. bxc4 {[%emt 0:00:05]} Bb6 {[%emt 0:00:12]} 37. f4 {[%emt 0:00:14]} f5 {[%emt 0:00:16]} 38. Kf3 {[%emt 0:01:39]} Kf7 {[%emt 0:00:18]} 39. Be5 {[%emt 0:00:29]} g6 {[%emt 0:00:58]} 40. Ke3 {[%emt 0:00:25]} Ke6 {[%emt 0:00:21]} 41. Kd3 {[%emt 0:30:38]} Kd7 {[%emt 0:31:19]} 42. Bf6 {[%emt 0:00:53]} Ke6 {[%emt 0:00:32]} 43. Be5 {[%emt 0:00:21]} Kd7 {[%emt 0:00:07]} 44. f3 {[%emt 0:00:08]} Kc6 {[%emt 0:00:35]} 45. Ke2 {[%emt 0:00:15]} Bd8 {[%emt 0:00:28]} 46. a4 {[%emt 0:00:11]} Bh4 {[%emt 0:00:36]} 47. Bc3 {[%emt 0:00:33]} 1/2-1/2

[Event "Kezmarok Chess Open 2022"]
[Site "Kezmarok"]
[Date "2022.09.25"]
[Round "2.18"]
[White "Hanina, Marcel"]
[Black "Vestur, Rastislav"]
[Result "0-1"]
[ECO "A01"]
[WhiteElo "1411"]
[BlackElo "1789"]
[Annotator "NA RC COMBH"]
[PlyCount "84"]
[EventDate "2022.09.24"]
[EventType "swiss"]
[EventCountry "SVK"]
[SourceTitle "playchess.com"]
[Source "ChessBase"]
[SourceQuality "1"]
[TimeControl "40/5400+30:1800+30"]

1. b3 d5 2. Bb2 Bf5 3. Nf3 Nf6 4. e3 e6 5. Be2 Bd6 6. O-O h6 7. d3 Nbd7 8. Nbd2 c6 9. e4 dxe4 10. dxe4 Bxe4 11. Nxe4 Nxe4 12. Bxg7 Rg8 13. Qd4 Bc5 14. Qxe4 Rxg7 15. Rad1 Qc7 16. Rd3 O-O-O 17. Qh4 Rdg8 18. g3 e5 19. Rfd1 f5 20. Rxd7 Rxd7 21. Rxd7 Qxd7 22. Qc4 Qd5 23. Nxe5 Re8 24. Qxd5 cxd5 25. Nd3 Rxe2 26. Nxc5 Rxc2 27. Nd3 Rxa2 28. b4 Ra3 29. Nf4 d4 30. Kf1 Kd7 31. Ke2 Kc6 32. h4 Kb5 33. Nd3 Kc4 34. Ne1 Ra2+ 35. Kf3 d3 36. Ng2 Kxb4 37. Ne3 Ra5 38. g4 fxg4+ 39. Kxg4 Kc3 40. Nd1+ Kd2 41. Ne3 Ke2 42. Kg3 d2 0-1

[Event "Kezmarok Chess Open 2022"]
[Site "Kezmarok"]
[Date "2022.09.25"]
[Round "3.1"]
[White "Bazakutsa, Svyatoslav"]
[Black "Berezjuk, Sergej"]
[Result "0-1"]
[ECO "A20"]
[WhiteElo "2182"]
[BlackElo "2382"]
[Annotator "TA"]
[PlyCount "122"]
[EventDate "2022.09.24"]
[EventType "swiss"]
[EventCountry "SVK"]
[SourceTitle "playchess.com"]
[Source "ChessBase"]
[SourceQuality "1"]
[TimeControl "40/5400+30:1800+30"]

{[%evp 9,121,11,18,10,12,13,22,0,17,0,0,0,2,0,25,31,16,7,11,12,7,0,15,15,20,19,14,14,12,17,13,0,20,7,7,0,22,0,1,-79,-70,-68,-59,-68,-66,-62,-72,-65,-75,-81,-70,-93,-93,-122,-111,-116,-109,-115,-115,-110,-120,-157,-152,-174,-170,-167,-69,-69,-68,-67,-68,-68,-69,-70,-74,-73,-73,-69,-70,-69,-85,-69,-68,-110,-71,-178,-178,-249,-241,-289,-270,-280,-276,-284,-284,-403,-397,-466,-464,-470,-438,-403,-418,-749,-443,-887,-511,-511,-508,-625,-625,-625,-625,-29999]} 1. c4 {[%emt 0:00:07]} e5 {[%emt 0:00:08]} 2. g3 {[%emt 0:00:12]} c6 {[%emt 0:00:06]} 3. Nf3 {[%emt 0:00:06]} e4 {[%emt 0:00:04]} 4. Nd4 {[%emt 0:00:06]} d5 {[%emt 0:00:13]} 5. cxd5 {[%emt 0:00:07]} Qxd5 {[%emt 0:00:05]} 6. Nc2 {[%emt 0:00:08] A20: English Opening: 1...e5.} Nf6 {[%emt 0:00:13]} 7. Nc3 {[%emt 0:00:10]} Qe5 {[%emt 0:00:02]} 8. Bg2 {[%emt 0:00:17] The position is equal.} Na6 {[%emt 0:00:09]} 9. O-O {[%emt 0:00:13]} Be7 {[%emt 0:02:30]} 10. d4 {[%emt 0:00:27]} exd3 $1 {[%emt 0:01:35]} 11. Qxd3 {[%emt 0:00:10]} Qh5 {[%emt 0:01:06]} 12. e4 {[%emt 0:15:35] Against Bf5} O-O {[%emt 0:20:29]} 13. f3 {[%emt 0:07:12] [#]} Rd8 $146 {[%emt 0:03:56]} ({Predecessor:} 13... Be6 14. Be3 Rfd8 15. Qe2 Bc5 16. Rad1 Bxe3+ 17. Qxe3 Qe5 18. Nd4 Bc4 19. Rfe1 Nb4 {1-0 (27) Bazakutsa,S (2018)-Lavrencic,M (1521) Tornelo INT 2020}) 14. Qe2 {[%emt 0:00:38]} Nb4 $132 {[%emt 0:00:39][%mdl 2048] Black is not keeping still} 15. Be3 {[%emt 0:23:40]} Nxc2 {[%emt 0:06:50]} 16. Qxc2 {[%emt 0:00:10]} Bc5 {[%emt 0:00:22]} 17. Qf2 {[%emt 0:02:57]} Bxe3 {[%emt 0:01:10]} 18. Qxe3 {[%emt 0:00:16]} Be6 {[%emt 0:00:22]} 19. Rfd1 {[%emt 0:04:08]} Qa5 {[%emt 0:00:50]} 20. h3 {[%emt 0:16:38]} Qb6 {[%emt 0:06:41]} 21. Qxb6 {[%emt 0:09:52]} axb6 {[%emt 0:00:02]} 22. f4 {[%emt 0:05:03]} g6 {[%emt 0:10:35]} 23. b3 {[%emt 0:05:42]} h5 {[%emt 0:19:31] Inhibits g4.} 24. f5 {[%emt 0:01:51]} (24. Rxd8+ $11 Rxd8 25. Rd1) 24... Rxd1+ $1 $17 {[%emt 0:05:46]} ({Much weaker is} 24... gxf5 25. Rxd8+ Rxd8 26. exf5 $11) 25. Rxd1 {[%emt 0:00:01]} gxf5 {[%emt 0:00:09]} 26. exf5 {[%emt 0:00:05]} Bxf5 {[%emt 0:00:38]} 27. Rf1 {[%emt 0:00:15]} Ra5 {[%emt 0:00:04]} 28. b4 {[%emt 0:04:39]} Re5 {[%emt 0:00:08]} 29. Rf4 {[%emt 0:01:26]} Kg7 {[%emt 0:01:45][%cal Oe5e3]} 30. Kf2 {[%emt 0:00:29]} b5 {[%emt 0:02:45]} 31. a4 {[%emt 0:00:47]} bxa4 {[%emt 0:01:41]} 32. Nxa4 {[%emt 0:00:03]} Be4 {[%emt 0:04:13] And now ...Bxg2 would win.} 33. Nc5 {[%emt 0:02:30][%cal Rg2e4]} Bxg2 {[%emt 0:00:59]} 34. Kxg2 {[%emt 0:00:02][%mdl 4096] Endgame KRN-KRN} Nd5 {[%emt 0:01:47]} 35. Rd4 {[%emt 0:00:58]} b5 $1 {[%emt 0:02:30][%cal Od5b4] White must now prevent ...Nxb4!} 36. Nd3 {[%emt 0:00:56]} Re2+ {[%emt 0:01:50]} 37. Kf1 {[%emt 0:00:18]} Rh2 {[%emt 0:00:58]} ({Black should play} 37... Rc2 $19 {Strongly threatening ...Rc4.} 38. Nf4 Nxf4 39. gxf4 Kf6 40. Rd6+ Kf5) 38. Nf2 $1 $15 {[%emt 0:00:42]} Ne3+ $1 {[%emt 0:00:34]} 39. Ke2 {[%emt 0:00:02]} Nf5 {[%emt 0:01:33][%csl LRd4,LRg3]} 40. Rd3 {[%emt 0:00:29]} Rg2 {[%emt 0:00:55] Black is more active.} 41. g4 {[%emt 0:30:28]} hxg4 {[%emt 0:30:32]} 42. hxg4 {[%emt 0:00:02]} Ne7 {[%emt 0:00:32]} 43. Kf3 {[%emt 0:01:12]} Rg1 {[%emt 0:01:39]} 44. Rd7 {[%emt 0:00:00]} Nd5 {[%emt 0:00:00]} 45. Nd3 {[%emt 0:00:00] Against Re1} Rf1+ {[%emt 0:00:00]} 46. Kg3 {[%emt 0:00:00] White is now going downhill.} Rf6 {[%emt 0:00:00]} 47. g5 {[%emt 0:00:00]} (47. Ne5 $17 {was necessary.}) 47... Re6 $19 {[%emt 0:00:00] ...Re3+ is the strong threat.} 48. Nc5 {[%emt 0:00:00]} (48. Kf2 $142) 48... Re5 {[%emt 0:00:00]} 49. Kg4 {[%emt 0:00:00]} Nxb4 {[%emt 0:00:00]} 50. Nb7 {[%emt 0:00:00] [#]} Nd5 $1 {[%emt 0:00:00]} 51. Nd8 {[%emt 0:00:00] [#]} Ne7 {[%emt 0:00:00]} 52. Kf4 {[%emt 0:00:55]} (52. g6 {keeps fighting.} Kxg6 53. Rd6+ Kg7 54. Kf4) 52... Ng6+ {[%emt 0:00:00]} 53. Kg4 {[%emt 0:01:13]} Re7 {[%emt 0:00:00]} 54. Rd6 {[%emt 0:00:11]} c5 {[%emt 0:00:00]} 55. Rb6 {[%emt 0:00:09]} b4 {[%emt 0:00:00]} 56. Nb7 {[%emt 0:00:22]} (56. Kg3 $142) 56... Ne5+ {[%emt 0:01:27]} 57. Kh5 {[%emt 0:01:30]} (57. Kg3 $142 Nd7 58. Rb5) 57... Nd7 {[%emt 0:03:39]} 58. Rb5 {[%emt 0:00:50]} Re5 {[%emt 0:00:32]} 59. Nd8 {[%emt 0:01:37]} Re8 {[%emt 0:00:37]} 60. Nc6 {[%emt 0:00:26]} Ne5 {[%emt 0:00:31][%cal Re8h8]} 61. Rxc5 {[%emt 0:01:34]} Rh8# {[%emt 0:00:10] Weighted Error Value: White=0.42/Black=0.20 (precise)} 0-1

[Event "Kezmarok Chess Open 2022"]
[Site "Kezmarok"]
[Date "2022.09.25"]
[Round "3.2"]
[White "Manik, Mikulas"]
[Black "Dubessay, Bastien"]
[Result "0-1"]
[ECO "C18"]
[WhiteElo "2362"]
[BlackElo "2259"]
[Annotator "TA"]
[PlyCount "50"]
[EventDate "2022.09.24"]
[EventType "swiss"]
[EventCountry "SVK"]
[SourceTitle "playchess.com"]
[Source "ChessBase"]
[SourceQuality "1"]
[TimeControl "40/5400+30:1800+30"]

{[%evp 25,50,66,68,71,74,79,80,64,72,73,94,69,75,40,28,55,49,0,79,81,78,-258,-248,-2096,-1972,-1297,-1268]} 1. e4 {[%emt 0:00:03]} e6 {[%emt 0:00:09]} 2. d4 {[%emt 0:00:03]} d5 {[%emt 0:00:05]} 3. Nc3 {[%emt 0:00:04]} Bb4 {[%emt 0:00:12]} 4. e5 {[%emt 0:00:04]} c5 {[%emt 0:00:10]} 5. a3 {[%emt 0:00:06]} Bxc3+ {[%emt 0:00:06]} 6. bxc3 {[%emt 0:00:02]} Ne7 {[%emt 0:00:08]} 7. Qg4 {[%emt 0:00:09]} Qc7 {[%emt 0:00:19]} 8. Bd3 {[%emt 0:00:13]} cxd4 {[%emt 0:06:05]} 9. Ne2 {[%emt 0:04:25]} dxc3 {[%emt 0:02:05]} 10. Qxg7 {[%emt 0:01:11]} Rg8 {[%emt 0:00:06]} 11. Qxh7 {[%emt 0:00:05]} Nbc6 {[%emt 0:13:17]} 12. Bf4 {[%emt 0:04:42]} Bd7 {[%emt 0:01:58]} 13. O-O {[%emt 0:04:40]} O-O-O {[%emt 0:05:47]} 14. Qxf7 {[%emt 0:05:24] C18: French: 3 Nc3 Bb4: Main line: 7 h4 and 7 Qg4.} Rdf8 {[%emt 0:01:55]} 15. Qh5 {[%emt 0:00:26]} Rh8 {[%emt 0:18:07]} 16. Qf3 {[%emt 0:01:34] White is better.} ({Much worse is} 16. Qg5 Rfg8 17. Qf6 Rf8 $11) 16... Be8 {[%emt 0:00:40]} 17. Qg4 {[%emt 0:00:46] [#]} ({Don't go for} 17. Nxc3 $2 Nxe5 18. Bxe5 Qxe5 $19) 17... Qd7 $146 {[%emt 0:09:42]} ({Predecessor:} 17... Nf5 18. Bxf5 Rxf5 19. Ng3 Nxe5 20. Bxe5 Rxe5 21. Rae1 Bb5 22. Qd4 Reh5 23. Nxh5 Rxh5 24. h3 Bxf1 25. Kxf1 Qh2 26. Rxe6 {1-0 (26) Ponce,H (2280)-Pupo,E (2395) Holguin 1992}) 18. Bg3 {[%emt 0:09:06]} Bh5 {[%emt 0:04:20] [#]} 19. Qa4 {[%emt 0:00:26]} Bxe2 {[%emt 0:00:34]} 20. Bxe2 {[%emt 0:00:13]} Nf5 {[%emt 0:00:19]} 21. Bd3 {[%emt 0:10:05]} (21. Bg4 $14) 21... Nfd4 {[%emt 0:02:01]} (21... Nxg3 $11 {keeps the balance.} 22. fxg3 Rxf1+ 23. Rxf1 Qc7) 22. Rab1 $16 {[%emt 0:02:41]} Rfg8 {[%emt 0:06:36]} 23. Bb5 $2 {[%emt 0:05:44][%mdl 8192]} (23. h3 $16) 23... Qh7 $19 {[%emt 0:01:03]} 24. h3 {[%emt 0:02:36] [#]} (24. f3 Rxg3 25. hxg3 Qh2+ 26. Kf2) 24... Nf3+ $1 {[%emt 0:08:59][%mdl 512] Pair of Knights!} 25. Kh1 {[%emt 0:00:14]} Qf5 {[%emt 0:00:14] Weighted Error Value: White=0.79/Black=0.10 (very precise)} 0-1

[Event "Kezmarok Chess Open 2022"]
[Site "Kezmarok"]
[Date "2022.09.25"]
[Round "3.3"]
[White "Hagarova, Zuzana"]
[Black "Demeter, Peter"]
[Result "1/2-1/2"]
[ECO "B07"]
[WhiteElo "2287"]
[BlackElo "2067"]
[Annotator "TA"]
[PlyCount "46"]
[EventDate "2022.09.24"]
[EventType "swiss"]
[EventCountry "SVK"]
[SourceTitle "playchess.com"]
[Source "ChessBase"]
[SourceQuality "1"]
[TimeControl "40/5400+30:1800+30"]

{[%evp 18,46,59,62,126,122,172,32,36,-76,37,16,43,59,64,25,33,0,0,-243,0,10,14,0,39,0,85,24,35,35,19]} 1. e4 {[%emt 0:00:03]} d6 {[%emt 0:01:27]} 2. d4 {[%emt 0:00:18]} Nf6 {[%emt 0:00:08]} 3. Nc3 {[%emt 0:00:11]} g6 {[%emt 0:00:06]} 4. Bg5 {[%emt 0:01:06]} Bg7 {[%emt 0:00:12]} 5. Qd2 {[%emt 0:01:06]} O-O {[%emt 0:04:40]} 6. f3 {[%emt 0:07:25]} c6 {[%emt 0:07:14]} 7. O-O-O {[%emt 0:09:16]} b5 {[%emt 0:04:08]} 8. Kb1 {[%emt 0:02:25]} b4 {[%emt 0:05:55]} 9. Nce2 {[%emt 0:00:45]} Qa5 {[%emt 0:02:32]} 10. Bh6 {[%emt 0:04:35]} e5 {[%emt 0:05:00] B07: Pirc Defence: Miscellaneous Systems.} (10... c5 $14) 11. h4 $1 $16 {[%emt 0:03:28][%cal Bh2h4,Bh4h5][%mdl 32]} c5 {[%emt 0:13:46] [#]} ({Weaker is} 11... Be6 12. Nc1 $14) (11... Bxh6 $16 12. Qxh6 Be6) 12. d5 $146 {[%emt 0:13:00]} (12. h5 $18) ({Predecessor:} 12. Bxg7 Kxg7 13. dxe5 dxe5 14. h5 Be6 15. Nc1 Nc6 16. hxg6 fxg6 17. Qh6+ Kg8 18. Rd6 Nd4 19. Nh3 Bxh3 20. Rxh3 Qc7 21. Bc4+ Kh8 22. Qxg6 {1-0 (22) Moskalenko,A (2475)-Liu,C (2378) Moscow 2016}) 12... c4 $14 {[%emt 0:04:11][%cal Oc4c3]} 13. c3 {[%emt 0:13:04]} (13. Bxg7 $14 {keeps the upper hand.} Kxg7 14. h5) 13... bxc3 {[%emt 0:03:48]} ({Don't play} 13... b3 14. a3 $16) ({Black should try} 13... Bxh6 $17 14. Qxh6 Nbd7 15. cxb4 Qxb4) 14. Nxc3 {[%emt 0:00:10]} Ba6 {[%emt 0:00:30]} 15. h5 {[%emt 0:00:52] Threatens to win with g4.} Nbd7 {[%emt 0:00:20]} 16. Nge2 {[%emt 0:03:09] Black must now prevent Bxg7.} Rab8 {[%emt 0:02:28]} 17. g4 {[%emt 0:08:52]} Rb7 {[%emt 0:15:17] ...Rfb8 is the strong threat.} 18. Bxg7 $2 {[%emt 0:01:37] [#]} (18. Rc1 $1 $11) 18... Kxg7 $2 {[%emt 0:00:10]} (18... Rfb8 $1 $19 {Strongly threatening ...Qa3.} 19. Rc1 (19. b3 $2 cxb3 20. a4 Kxg7 $19) 19... Rxb2+ 20. Qxb2 Rxb2+ 21. Kxb2 Kxg7) 19. Rc1 {[%emt 0:01:14]} Rfb8 {[%emt 0:00:33]} 20. Rc2 {[%emt 0:00:33]} Kg8 {[%emt 0:04:12]} (20... Nc5 $5 {[%cal Ra5a3]}) 21. Nc1 {[%emt 0:04:49]} (21. Nd1 $5 {[%cal Rd2a5]} Qxd2 22. Rxd2 $11) 21... Nf8 {[%emt 0:03:28]} (21... Ne8 $11) 22. Rh2 {[%emt 0:03:46]} (22. Nd1 $16 Rb4 {[#]} 23. Bxc4 $1) 22... N6d7 $11 {[%emt 0:00:21]} 23. Qe3 {[%emt 0:04:44]} Nc5 {[%emt 0:03:29] Weighted Error Value: White=0.46/Black=0.63} 1/2-1/2